{"text_format":"3","workbook":"xlsx","n_sheets":4,"sheets":["التدفق النقدي","الدخل الشهري","المصاريف الشهرية","بيانات المخطط"],"not_rendered":{"charts":1,"defined_names":10},"read":"whole","date_system":"1900"}

{"sheet":"التدفق النقدي","index":0,"n_rows":9,"n_cols":5,"rows_kept":9}
[null,"الاسم"]
[null,"موازنة العائلة"]
[null,{"$f":"TEXT(TODAY(),\"mmmm\")","v":"يناير"}]
[null,{"$f":"YEAR(TODAY())","v":2017}]
[null,"ملاحظة: يتم احتساب جدول التدفق النقدي تلقائياً استناداً إلى الإدخالات الموجودة في ورقتي عمل \"الدخل الشهري\" و\"المصاريف الشهرية\""]
[null,"التدفق النقدي","المتوقع","الفعلي","الفرق"]
[null,"إجمالي الدخل",{"$f":"الدخل[[#Totals],[المتوقع]]","v":{"v":5700,"d":"5,700"}},{"$f":"الدخل[[#Totals],[الفعلي]]","v":{"v":5500,"d":"5,500"}},{"$f":"الدخل[[#Totals],[الفرق]]","v":-200}]
[null,"إجمالي المصاريف",{"$f":"المصاريف[[#Totals],[المتوقع]]","v":{"v":3603,"d":"3,603"}},{"$f":"المصاريف[[#Totals],[الفعلي]]","v":{"v":3655,"d":"3,655"}},{"$f":"المصاريف[[#Totals],[الفرق]]","v":-52}]
[null,"إجمالي النقد",{"$f":"C7-C8","v":{"v":2097,"d":"2,097"}},{"$f":"D7-D8","v":{"v":1845,"d":"1,845"}},{"$f":"SUBTOTAL(109,التدفق_النقدي[الفرق])","v":-252}]

{"sheet":"الدخل الشهري","index":1,"n_rows":9,"n_cols":5,"rows_kept":9}
[null,{"$f":"الاسم","v":"الاسم"}]
[null,{"$f":"عنوان_الموازنة","v":"موازنة العائلة"}]
[null,{"$f":"الشهر","v":"يناير"}]
[null,{"$f":"السنة","v":2017}]
[null,"الدخل الشهري","المتوقع","الفعلي","الفرق"]
[null,"الدخل 1",{"v":4000,"d":"4,000"},{"v":4000,"d":"4,000"},{"$f":"الدخل[[#This Row],[الفعلي]]-الدخل[[#This Row],[المتوقع]]","v":0}]
[null,"الدخل 2",{"v":1400,"d":"1,400"},{"v":1500,"d":"1,500"},{"$f":"الدخل[[#This Row],[الفعلي]]-الدخل[[#This Row],[المتوقع]]","v":100}]
[null,"دخل آخر",300,0,{"$f":"الدخل[[#This Row],[الفعلي]]-الدخل[[#This Row],[المتوقع]]","v":-300}]
[null,"إجمالي الدخل",{"$f":"SUBTOTAL(109,الدخل[المتوقع])","v":{"v":5700,"d":"5,700"}},{"$f":"SUBTOTAL(109,الدخل[الفعلي])","v":{"v":5500,"d":"5,500"}},{"$f":"SUBTOTAL(109,الدخل[الفرق])","v":-200}]

{"sheet":"المصاريف الشهرية","index":2,"n_rows":26,"n_cols":5,"rows_kept":26}
[null,{"$f":"الاسم","v":"الاسم"}]
[null,{"$f":"عنوان_الموازنة","v":"موازنة العائلة"}]
[null,{"$f":"الشهر","v":"يناير"}]
[null,{"$f":"السنة","v":2017}]
[null,"المصاريف الشهرية","المتوقع","الفعلي","الفرق"]
[null,"الإسكان",{"v":1500,"d":"1,500"},{"v":1500,"d":"1,500"},{"$f":"المصاريف[[#This Row],[المتوقع]]-المصاريف[[#This Row],[الفعلي]]","v":0}]
[null,"البقالة",250,280,{"$f":"المصاريف[[#This Row],[المتوقع]]-المصاريف[[#This Row],[الفعلي]]","v":-30}]
[null,"الهاتف",38,38,{"$f":"المصاريف[[#This Row],[المتوقع]]-المصاريف[[#This Row],[الفعلي]]","v":0}]
[null,"الكهرباء/الوقود",65,78,{"$f":"المصاريف[[#This Row],[المتوقع]]-المصاريف[[#This Row],[الفعلي]]","v":-13}]
[null,"المياه/الصرف الصحي/القمامة",25,21,{"$f":"المصاريف[[#This Row],[المتوقع]]-المصاريف[[#This Row],[الفعلي]]","v":4}]
[null,"القنوات الفضائية",75,83,{"$f":"المصاريف[[#This Row],[المتوقع]]-المصاريف[[#This Row],[الفعلي]]","v":-8}]
[null,"الإنترنت",60,60,{"$f":"المصاريف[[#This Row],[المتوقع]]-المصاريف[[#This Row],[الفعلي]]","v":0}]
[null,"الصيانة/الإصلاحات",0,60,{"$f":"المصاريف[[#This Row],[المتوقع]]-المصاريف[[#This Row],[الفعلي]]","v":-60}]
[null,"رعاية الأطفال",180,150,{"$f":"المصاريف[[#This Row],[المتوقع]]-المصاريف[[#This Row],[الفعلي]]","v":30}]
[null,"الرسوم الدراسية",250,250,{"$f":"المصاريف[[#This Row],[المتوقع]]-المصاريف[[#This Row],[الفعلي]]","v":0}]
[null,"الحيوانات الأليفة",75,80,{"$f":"المصاريف[[#This Row],[المتوقع]]-المصاريف[[#This Row],[الفعلي]]","v":-5}]
[null,"وسائل النقل",280,260,{"$f":"المصاريف[[#This Row],[المتوقع]]-المصاريف[[#This Row],[الفعلي]]","v":20}]
[null,"الرعاية الشخصية",75,65,{"$f":"المصاريف[[#This Row],[المتوقع]]-المصاريف[[#This Row],[الفعلي]]","v":10}]
[null,"التأمين",255,255,{"$f":"المصاريف[[#This Row],[المتوقع]]-المصاريف[[#This Row],[الفعلي]]","v":0}]
[null,"بطاقات الائتمان",100,100,{"$f":"المصاريف[[#This Row],[المتوقع]]-المصاريف[[#This Row],[الفعلي]]","v":0}]
[null,"القروض",0,0,{"$f":"المصاريف[[#This Row],[المتوقع]]-المصاريف[[#This Row],[الفعلي]]","v":0}]
[null,"الضرائب",0,0,{"$f":"المصاريف[[#This Row],[المتوقع]]-المصاريف[[#This Row],[الفعلي]]","v":0}]
[null,"الهدايا/التبرعات",150,150,{"$f":"المصاريف[[#This Row],[المتوقع]]-المصاريف[[#This Row],[الفعلي]]","v":0}]
[null,"المدخرات",225,225,{"$f":"المصاريف[[#This Row],[المتوقع]]-المصاريف[[#This Row],[الفعلي]]","v":0}]
[null,"أخرى",0,0,{"$f":"المصاريف[[#This Row],[المتوقع]]-المصاريف[[#This Row],[الفعلي]]","v":0}]
[null,"الإجمالي",{"$f":"SUBTOTAL(109,المصاريف[المتوقع])","v":{"v":3603,"d":"3,603"}},{"$f":"SUBTOTAL(109,المصاريف[الفعلي])","v":{"v":3655,"d":"3,655"}},{"$f":"SUBTOTAL(109,المصاريف[الفرق])","v":-52}]

{"sheet":"بيانات المخطط","index":3,"n_rows":6,"n_cols":4,"rows_kept":6,"hidden":true}
[null,"بيانات المخطط"]
[]
[null,null,"المتوقع","الفعلي"]
[null,"التدفق النقدي",{"$f":"التدفق_النقدي[[#Totals],[المتوقع]]","v":2097},{"$f":"التدفق_النقدي[[#Totals],[الفعلي]]","v":1845}]
[null,"الدخل الشهري",{"$f":"الدخل[[#Totals],[المتوقع]]","v":5700},{"$f":"الدخل[[#Totals],[الفعلي]]","v":5500}]
[null,"المصاريف الشهرية",{"$f":"المصاريف[[#Totals],[المتوقع]]","v":3603},{"$f":"المصاريف[[#Totals],[الفعلي]]","v":3655}]